bitfinex-derivatives/quotes_BTCF0:USTF0_20250329
["timestamp","ask_amount","ask_price","bid_price","bid_amount"]
[1743229090654,0.55604937,83765.0,83764.0,0.1564683]
[1743229090861,0.32604937,83765.0,83764.0,0.1564683]
[1743229091049,0.60604937,83765.0,83764.0,0.1238683]
[1743229091248,0.33541855,83765.0,83764.0,0.1238683]
[1743229092257,0.32604937,83765.0,83764.0,0.1564683]
[1743229092650,0.43604937,83765.0,83764.0,0.1564683]
[1743229092852,0.56604937,83765.0,83764.0,0.1564683]
[1743229093053,0.32604937,83765.0,83764.0,0.1564683]
[1743229093247,0.43604937,83765.0,83764.0,0.1564683]
[1743229093453,0.32604937,83765.0,83764.0,0.1564683]
[1743229093647,0.53604937,83765.0,83764.0,0.1564683]
[1743229093852,0.32604937,83765.0,83764.0,0.1564683]
[1743229094156,0.52604937,83765.0,83764.0,0.1564683]
[1743229094490,0.32604937,83765.0,83764.0,0.1564683]
[1743229094754,0.42604937,83765.0,83764.0,0.1564683]
[1743229094963,0.52604937,83765.0,83764.0,0.1563683]
[1743229095160,0.32604937,83765.0,83764.0,0.1237683]
[1743229095357,0.59604937,83765.0,83764.0,0.1561683]
[1743229095563,0.43604937,83765.0,83764.0,0.1864683]
[1743229095758,0.60604937,83765.0,83764.0,0.1864683]
[1743229095962,0.57604937,83765.0,83764.0,0.1864683]
[1743229096156,0.4533669,83765.0,83764.0,0.1864683]
[1743229096352,0.4633669,83765.0,83764.0,0.1864683]
[1743229096556,0.1833669,83765.0,83764.0,0.1864683]
[1743229097148,0.4033669,83765.0,83764.0,0.1864683]
[1743229097348,0.42288376,83765.0,83764.0,0.1864683]
[1743229097665,0.19288376,83765.0,83764.0,0.1864683]
[1743229097959,0.49538376,83765.0,83764.0,0.00434]
[1743229098163,0.48538376,83765.0,83764.0,0.0029]
[1743229098459,0.46538376,83765.0,83764.0,0.00438]
[1743229098758,0.47566687,83765.0,83764.0,0.0029]
[1743229098965,0.33566687,83765.0,83764.0,0.00438]
[1743229099150,0.32566687,83765.0,83764.0,0.00438]
[1743229099351,0.50566687,83765.0,83764.0,0.00438]
[1743229099551,0.48566687,83765.0,83764.0,0.00148]
[1743229099747,0.22566687,83765.0,83764.0,0.1219083]
[1743229100158,0.45834934,83765.0,83764.0,0.1219083]
[1743229100355,0.36834934,83765.0,83764.0,0.1219083]
[1743229100652,0.61834934,83765.0,83764.0,0.1219083]
[1743229100956,0.36834934,83765.0,83764.0,0.1219083]
[1743229102468,0.33584934,83765.0,83764.0,0.1219083]
[1743229102763,0.42584934,83765.0,83764.0,0.1219083]
[1743229102967,0.33584934,83765.0,83764.0,0.1878083]
[1743229103463,0.32604937,83765.0,83764.0,0.1878083]
[1743229103668,0.4233669,83765.0,83764.0,0.1878083]
[1743229103860,0.2933669,83765.0,83764.0,0.1878083]
[1743229104064,0.4533669,83765.0,83764.0,0.1878083]
[1743229104358,0.4433669,83765.0,83764.0,0.1878083]
[1743229104566,0.45290239,83765.0,83764.0,0.1878083]
[1743229104766,0.47290239,83765.0,83764.0,0.1878083]
[1743229104962,0.43290239,83765.0,83764.0,0.1878083]
[1743229105363,0.44290239,83765.0,83764.0,0.06838]
[1743229105567,0.19290239,83765.0,83764.0,0.0669]
[1743229105760,0.30290239,83765.0,83764.0,0.03548]
[1743229105963,0.44290239,83765.0,83764.0,0.03548]
[1743229106162,0.19290239,83765.0,83764.0,0.00248]
[1743229106362,0.43290239,83765.0,83764.0,0.00248]
[1743229106562,0.46290239,83765.0,83764.0,0.00248]
[1743229106764,0.43290239,83765.0,83764.0,0.00248]
[1743229106961,0.47290239,83765.0,83764.0,0.00248]
[1743229107375,0.29290239,83765.0,83764.0,0.00248]
[1743229107671,0.29290239,83765.0,83764.0,0.00244]
[1743229107869,0.19290239,83765.0,83764.0,0.00244]
[1743229108078,0.47290239,83765.0,83764.0,0.00244]
[1743229108273,0.29290239,83765.0,83764.0,0.00244]
[1743229108876,0.43290239,83765.0,83764.0,0.00244]
[1743229109277,0.44290239,83765.0,83764.0,0.001]
[1743229109468,0.44290239,83765.0,83764.0,0.03494]
[1743229109866,0.42290239,83765.0,83764.0,0.03494]
[1743229110066,0.30290239,83765.0,83764.0,0.03494]
[1743229110464,0.19290239,83765.0,83764.0,0.03494]
[1743229110670,0.29290239,83765.0,83764.0,0.03494]
[1743229110876,0.19290239,83765.0,83764.0,0.03494]
[1743229111072,0.30290239,83765.0,83764.0,0.03494]
[1743229111280,0.19290239,83765.0,83764.0,0.03494]
[1743229111584,0.47290239,83765.0,83764.0,0.03494]
[1743229111766,0.19290239,83765.0,83764.0,0.0335]
[1743229111973,0.46290239,83765.0,83764.0,0.0335]
[1743229112171,0.19290239,83765.0,83764.0,0.03498]
[1743229112369,0.46290239,83765.0,83764.0,0.03498]
[1743229112679,0.19290239,83765.0,83764.0,0.1544083]
[1743229113093,0.19290239,83765.0,83764.0,0.5152083]
[1743229113975,0.19290239,83765.0,83764.0,0.39578]
[1743229114274,0.40290239,83765.0,83764.0,0.39578]
[1743229114477,0.19290239,83765.0,83764.0,0.39578]
[1743229114673,0.39290239,83765.0,83764.0,0.39578]
[1743229114877,0.19290239,83765.0,83764.0,0.42668]
[1743229115975,0.29290239,83765.0,83764.0,0.42668]
[1743229116270,0.44290239,83765.0,83764.0,0.42668]
[1743229116472,0.19290239,83765.0,83764.0,0.42668]
[1743229117182,0.19290239,83765.0,83764.0,0.5461083]
[1743229117482,0.19290239,83765.0,83764.0,0.1853083]
[1743229118479,0.1833669,83765.0,83764.0,0.1853083]
[1743229120078,0.2933669,83765.0,83764.0,0.1853083]
[1743229120284,0.1833669,83765.0,83764.0,0.1853083]
[1743229120784,0.19273873,83765.0,83764.0,0.1853083]
[1743229121577,0.1833669,83765.0,83764.0,0.1853083]
[1743229123781,0.4233669,83765.0,83764.0,0.1853083]
[1743229123969,0.2933669,83765.0,83764.0,0.1853083]
[1743229124496,0.1833669,83765.0,83764.0,0.1853083]
[1743229124691,0.1833669,83765.0,83764.0,0.06588]
[1743229125384,0.1833669,83765.0,83764.0,0.1853083]
[1743229125687,0.4133669,83765.0,83764.0,0.1853083]
[1743229125882,0.4533669,83765.0,83764.0,0.1853083]
[1743229126185,0.1833669,83765.0,83764.0,0.1853083]
[1743229126389,0.2733669,83765.0,83764.0,0.1853083]
[1743229126580,0.19274186,83765.0,83764.0,0.1853083]
[1743229126885,0.47274186,83765.0,83764.0,0.1853083]
[1743229127285,0.30274186,83765.0,83764.0,0.1853083]
[1743229127582,0.44274186,83765.0,83764.0,0.1853083]
[1743229127784,0.47274186,83765.0,83764.0,0.1853083]
[1743229127986,0.19274186,83765.0,83764.0,0.1853083]
[1743229128282,0.41274186,83765.0,83764.0,0.1853083]
[1743229128585,0.30274186,83765.0,83764.0,0.1853083]
[1743229128775,0.19274186,83765.0,83764.0,0.00248]
[1743229128979,0.46274186,83765.0,83764.0,0.001]
[1743229129179,0.29274186,83765.0,83764.0,0.001]
[1743229129373,0.19274186,83765.0,83764.0,0.001]
[1743229129578,0.19274186,83765.0,83764.0,0.00244]
[1743229129773,0.19274186,83765.0,83764.0,0.1218683]
[1743229130582,0.1833669,83765.0,83764.0,0.1544683]
[1743229130885,0.3933669,83765.0,83764.0,0.1857683]
[1743229131077,0.1833669,83765.0,83764.0,0.1857683]
[1743229131681,0.4233669,83765.0,83764.0,0.1857683]
[1743229131888,0.1833669,83765.0,83764.0,0.1857683]
[1743229132089,0.36171999,83765.0,83764.0,0.1857683]
[1743229134590,0.36171999,83765.0,83764.0,0.06634]
[1743229134778,0.36171999,83765.0,83764.0,0.0649]
[1743229134779,0.60171999,83765.0,83764.0,0.0649]
[1743229134980,0.36171999,83765.0,83764.0,0.0649]
[1743229135287,0.36171999,83765.0,83764.0,0.06634]
[1743229135288,0.3933669,83765.0,83764.0,0.06634]
[1743229135488,0.4333669,83765.0,83764.0,0.06634]
[1743229135686,0.2833669,83765.0,83764.0,0.06634]
[1743229135880,0.4333669,83765.0,83764.0,0.06634]
[1743229136090,0.4233669,83765.0,83764.0,0.00244]
[1743229136387,0.4633669,83765.0,83764.0,0.00244]
[1743229136580,0.4533669,83765.0,83764.0,0.00244]
[1743229137085,0.2833669,83765.0,83764.0,0.00244]
[1743229137389,0.4533669,83765.0,83764.0,0.00244]
[1743229137585,0.4033669,83765.0,83764.0,0.00244]
[1743229138187,0.1833669,83765.0,83764.0,0.00244]
[1743229138490,0.4433669,83765.0,83764.0,0.00244]
[1743229138675,0.6441669,83765.0,83764.0,0.00244]
[1743229138878,0.6441669,83765.0,83764.0,0.001]
[1743229140082,0.1194412,83755.0,83754.0,0.28575183]
[1743229140290,0.3994412,83755.0,83754.0,0.28719183]
[1743229140489,0.4009612,83755.0,83754.0,0.28719183]
[1743229140987,0.41297304,83755.0,83754.0,0.28719183]
[1743229141488,0.41297304,83755.0,83754.0,0.28919183]
[1743229142492,0.41297304,83755.0,83754.0,0.30423074]
[1743229142889,0.41297304,83755.0,83754.0,0.28919183]
[1743229143289,0.53033304,83755.0,83754.0,0.28919183]
[1743229143687,0.53037304,83755.0,83754.0,0.28919183]
[1743229146191,0.71272613,83755.0,83754.0,0.00344]
[1743229146395,0.71272613,83755.0,83754.0,0.002]
[1743229146696,0.1194583,83743.0,83742.0,0.031]
[1743229146889,0.3708983,83743.0,83742.0,0.03244]
[1743229147093,0.3708983,83743.0,83742.0,0.00144]
[1743229147597,0.4315983,83743.0,83742.0,0.00144]
[1743229147989,0.4325983,83743.0,83742.0,0.00144]
[1743229148895,0.1825983,83743.0,83742.0,0.00144]
[1743229149102,0.1825983,83743.0,83742.0,0.03444]
[1743229149303,0.06314,83743.0,83742.0,0.1847997]
[1743229149491,0.1825983,83743.0,83742.0,0.6255997]
[1743229149801,0.1836783,83743.0,83742.0,0.6255997]
[1743229149991,0.1821583,83743.0,83742.0,0.50614]
[1743229150193,0.4235983,83743.0,83742.0,0.52145758]
[1743229150396,0.2735983,83743.0,83742.0,0.49055758]
[1743229150600,0.4435983,83743.0,83742.0,0.37755758]
[1743229150894,0.5611183,83743.0,83742.0,0.37755758]
[1743229152502,0.4435983,83743.0,83742.0,0.37755758]
[1743229152797,0.5611183,83743.0,83742.0,0.37755758]
[1743229154008,0.5611183,83743.0,83742.0,0.01675758]
[1743229154802,0.4435983,83743.0,83742.0,0.13621728]
[1743229155103,0.4435983,83743.0,83742.0,0.01675758]
[1743229155805,0.4435983,83743.0,83742.0,0.13621728]
[1743229156000,0.4435983,83743.0,83742.0,0.16861728]
[1743229156205,0.4435983,83743.0,83742.0,0.04915758]
[1743229157105,0.4435983,83743.0,83742.0,0.07955758]
[1743229158706,0.1835983,83743.0,83742.0,0.07955758]
[1743229159001,0.4135983,83743.0,83742.0,0.07955758]
[1743229159206,0.4535983,83743.0,83742.0,0.07955758]
[1743229159408,0.4435983,83743.0,83742.0,0.07955758]
[1743229159599,0.1835983,83743.0,83742.0,0.07955758]
[1743229159795,0.2935983,83743.0,83742.0,0.19901728]
[1743229160001,0.4035983,83743.0,83742.0,0.19901728]
[1743229160300,0.1835983,83743.0,83742.0,0.19901728]
[1743229160502,0.4435983,83743.0,83742.0,0.19901728]
[1743229160701,0.4535983,83743.0,83742.0,0.07955758]
[1743229161204,0.4435983,83743.0,83742.0,0.07955758]
[1743229161407,0.1835983,83743.0,83742.0,0.07955758]
[1743229161807,0.4235983,83743.0,83742.0,0.07955758]
[1743229162109,0.4635983,83743.0,83742.0,0.07955758]
[1743229163005,0.4135983,83743.0,83742.0,0.06424]
[1743229163210,0.2735983,83743.0,83742.0,0.06424]
[1743229163409,0.4135983,83743.0,83742.0,0.06424]
[1743229163714,0.1835983,83743.0,83742.0,0.06424]
[1743229164312,0.4135983,83743.0,83742.0,0.07925036]
[1743229164606,0.1835983,83743.0,83742.0,0.07925036]
[1743229164798,0.4635983,83743.0,83742.0,0.07925036]
[1743229164994,0.2735983,83743.0,83742.0,0.07925036]
[1743229165199,0.1228983,83743.0,83742.0,0.07925036]
[1743229165905,0.1551983,83743.0,83742.0,0.07925036]
[1743229166602,0.3951983,83743.0,83742.0,0.19871006]
[1743229167009,0.1551983,83743.0,83742.0,0.19871006]
[1743229167307,0.1228983,83743.0,83742.0,0.19871006]
[1743229168709,0.3628983,83743.0,83742.0,0.19871006]
[1743229169012,0.1228983,83743.0,83742.0,0.19871006]
[1743229170511,0.4028983,83743.0,83742.0,0.07925036]
[1743229170704,0.3932983,83743.0,83742.0,0.07925036]
[1743229171013,0.53576567,83743.0,83742.0,0.07925036]
[1743229171203,0.29576567,83743.0,83742.0,0.07925036]
[1743229171806,0.56576567,83743.0,83742.0,0.07925036]
[1743229172007,0.49576567,83743.0,83742.0,0.07925036]
[1743229172203,0.29576567,83743.0,83742.0,0.07925036]
[1743229172504,0.53576567,83743.0,83742.0,0.07925036]
[1743229172707,0.29576567,83743.0,83742.0,0.07925036]
[1743229172904,0.54576567,83743.0,83742.0,0.07925036]
[1743229173106,0.57576567,83743.0,83742.0,0.07925036]
[1743229173307,0.39576567,83743.0,83742.0,0.07925036]
[1743229173510,0.49576567,83743.0,83742.0,0.07925036]
[1743229173803,0.1532983,83743.0,83742.0,0.07925036]
[1743229174003,0.3932983,83743.0,83742.0,0.07925036]
[1743229174205,0.4332983,83743.0,83742.0,0.07925036]
[1743229174404,0.1532983,83743.0,83742.0,0.07925036]
[1743229174606,0.3632983,83743.0,83742.0,0.07925036]
[1743229175014,0.1532983,83743.0,83742.0,0.07925036]
[1743229175206,0.4032983,83743.0,83742.0,0.07925036]
[1743229175401,0.1532983,83743.0,83742.0,0.07925036]
[1743229176201,0.4032983,83743.0,83742.0,0.07925036]
[1743229176405,0.1532983,83743.0,83742.0,0.07925036]
[1743229176606,0.4332983,83743.0,83742.0,0.07925036]
[1743229176802,0.1532983,83743.0,83742.0,0.07925036]
[1743229177018,0.62972445,83743.0,83742.0,0.07925036]
[1743229177201,0.38972445,83743.0,83742.0,0.06424]
[1743229177802,0.49972445,83743.0,83742.0,0.06424]
[1743229178120,0.47972445,83743.0,83742.0,0.06424]
[1743229178313,0.64972445,83743.0,83742.0,0.06424]
[1743229178513,0.65972445,83743.0,83742.0,0.06424]
[1743229179018,0.64972445,83743.0,83742.0,0.06424]
[1743229179414,0.38972445,83743.0,83742.0,0.06424]
[1743229179620,0.47972445,83743.0,83742.0,0.00144]
[1743229179912,0.21137136,83743.0,83742.0,0.00144]
[1743229180120,0.1791973,83740.0,83737.0,0.3608]
[1743229180315,0.1806345,83740.0,83739.0,0.031]
[1743229180507,0.1806345,83740.0,83739.0,0.00148]
[1743229180710,0.4206345,83740.0,83739.0,0.00148]
[1743229181624,0.7814345,83740.0,83739.0,0.00148]
[1743229181918,0.1194697,83735.0,83734.0,0.0951]
[1743229182219,0.4009497,83735.0,83734.0,0.09654]
[1743229182417,0.1209497,83735.0,83734.0,0.04817593]
[1743229182617,0.1209497,83735.0,83734.0,0.01677593]
[1743229182813,0.3909497,83735.0,83734.0,0.01677593]
[1743229183007,0.2109497,83735.0,83734.0,0.01677593]
[1743229183416,0.2109497,83735.0,83734.0,0.01777593]
[1743229183611,0.13309597,83735.0,83734.0,0.01777593]
[1743229183819,0.37309597,83735.0,83734.0,0.01777593]
[1743229184316,0.23309597,83735.0,83734.0,0.01777593]
[1743229184617,0.40309597,83735.0,83734.0,0.01633593]
[1743229185012,0.36309597,83735.0,83734.0,0.01633593]
[1743229187621,0.23309597,83735.0,83734.0,0.01633593]
[1743229188425,0.13309597,83735.0,83734.0,0.01633593]
[1743229189120,0.13309597,83735.0,83734.0,0.01785593]
[1743229189326,0.23309597,83735.0,83734.0,0.01785593]
[1743229189628,0.13309597,83735.0,83734.0,0.01785593]
[1743229190323,0.24309597,83735.0,83734.0,0.01785593]
[1743229190620,0.24309597,83735.0,83734.0,0.01633593]
[1743229192030,0.24309597,83735.0,83734.0,0.001]
[1743229192928,0.36161597,83735.0,83734.0,0.001]
[1743229193224,0.37066881,83735.0,83734.0,0.001]
[1743229194323,0.1194897,83721.0,83720.0,0.26473454]
[1743229194623,0.8802097,83721.0,83720.0,0.26617454]
[1743229194924,0.8802097,83721.0,83720.0,0.28128221]
[1743229196431,0.8802097,83721.0,83720.0,0.28228221]
[1743229196619,0.6323097,83721.0,83720.0,0.28228221]
[1743229196824,0.7323097,83721.0,83720.0,0.06754767]
[1743229197024,0.7323097,83721.0,83720.0,0.09247709]
[1743229197225,0.7323097,83721.0,83720.0,0.12497709]
[1743229200523,0.3715097,83721.0,83720.0,0.12497709]
[1743229200723,0.3715097,83721.0,83720.0,0.15747709]
[1743229201233,0.3715097,83721.0,83720.0,0.13254767]
[1743229201625,0.3715097,83721.0,83720.0,0.13110767]
[1743229202125,0.00144,83721.0,83720.0,0.13110767]
[1743229202316,0.00144,83721.0,83720.0,0.13254767]
[1743229202520,0.1209297,83721.0,83720.0,0.13254767]
[1743229203216,0.1209297,83721.0,83720.0,0.49334767]
[1743229203816,0.1209297,83721.0,83720.0,0.61283877]
[1743229204030,0.1209297,83721.0,83720.0,0.86283877]
[1743229204233,0.1209297,83721.0,83720.0,0.74334767]
[1743229205127,0.1209297,83721.0,83720.0,0.86283877]
[1743229205326,0.0709297,83721.0,83720.0,0.86283877]
[1743229206318,0.0709297,83721.0,83720.0,0.50203877]
[1743229206520,0.0709297,83721.0,83720.0,0.74334767]
[1743229206922,0.0709297,83721.0,83720.0,0.13254767]
[1743229207523,0.1709297,83721.0,83720.0,0.13254767]
[1743229207724,0.0709297,83721.0,83720.0,0.13254767]
[1743229207924,0.0709297,83721.0,83720.0,0.25203877]
[1743229208924,0.0709297,83721.0,83720.0,0.61283877]
[1743229209824,0.1792314,83723.0,83722.0,0.1194883]
[1743229210032,0.1792314,83723.0,83722.0,0.1213683]
[1743229210349,0.059744,83723.0,83722.0,0.13647597]
[1743229212632,0.059744,83723.0,83722.0,0.13747597]
[1743229213131,0.00017915,83729.0,83728.0,0.1194797]
[1743229213429,0.00017915,83729.0,83728.0,0.13654737]
[1743229213733,0.11965745,83729.0,83728.0,0.13654737]
[1743229213934,0.11965745,83729.0,83728.0,0.20064737]
[1743229214819,0.15265745,83729.0,83728.0,0.20064737]
[1743229215631,0.15365745,83729.0,83728.0,0.20064737]
[1743229216831,0.15365745,83729.0,83728.0,0.08116767]
[1743229217026,0.36365745,83729.0,83728.0,0.08116767]
[1743229217338,0.15365745,83729.0,83728.0,0.20064737]
[1743229217836,0.15365745,83729.0,83728.0,0.08116767]
[1743229218536,0.15365745,83729.0,83728.0,0.20064737]
[1743229219037,0.38365745,83729.0,83728.0,0.20064737]
[1743229219238,0.15365745,83729.0,83728.0,0.20064737]
[1743229219937,0.00217915,83729.0,83728.0,0.5463397]
[1743229220142,0.12165745,83729.0,83728.0,0.5463397]
[1743229220332,0.12165745,83729.0,83728.0,0.1855397]
[1743229220639,0.12165745,83729.0,83728.0,0.5463397]
[1743229221030,0.12165745,83729.0,83728.0,0.56136875]
[1743229221533,0.12165745,83729.0,83728.0,0.20056875]
[1743229221940,0.12165745,83729.0,83728.0,0.56136875]
[1743229222331,0.12165745,83729.0,83728.0,0.5463397]
[1743229222738,0.00217915,83729.0,83728.0,0.5463397]
[1743229222934,0.12165745,83729.0,83728.0,0.5463397]
[1743229223328,0.00217915,83729.0,83728.0,0.5463397]
[1743229223532,0.12165745,83729.0,83728.0,0.5463397]
[1743229223732,0.12165745,83729.0,83728.0,0.5462397]
[1743229224137,0.00217915,83729.0,83728.0,0.5462397]
[1743229224543,0.00217915,83729.0,83728.0,0.8162397]
[1743229225537,0.1194602,83742.0,83736.0,0.1194683]
[1743229225736,0.0301,83744.0,83736.0,0.3813083]
[1743229225928,0.0898307,83741.0,83736.0,0.3813083]
[1743229226135,0.0301,83741.0,83736.0,0.39642015]
[1743229226335,0.0301,83741.0,83736.0,0.45962015]
[1743229226535,0.1194618,83741.0,83736.0,0.45962015]
[1743229226735,0.10680985,83738.0,83737.0,0.1194669]
[1743229227041,0.10680985,83738.0,83737.0,0.3813069]
[1743229227242,0.10680985,83738.0,83737.0,0.4448069]
[1743229227433,0.10680985,83738.0,83737.0,0.45991875]
[1743229227742,0.06494554,83743.0,83742.0,0.1194597]
[1743229227946,0.06494554,83743.0,83742.0,0.8503397]
[1743229228542,0.02761411,83743.0,83742.0,0.9747778]
[1743229229338,0.02761411,83743.0,83742.0,0.9138397]
[1743229229838,0.03161411,83743.0,83742.0,0.9138397]
[1743229230345,0.004,83743.0,83742.0,0.9138397]
[1743229230547,0.008,83743.0,83742.0,0.9138397]
[1743229231240,0.004,83743.0,83742.0,0.9138397]
[1743229232537,0.00017915,83745.0,83744.0,0.1194569]
[1743229232739,0.00017915,83745.0,83744.0,0.38033603]
[1743229233244,0.00017915,83745.0,83744.0,0.49841603]
[1743229233545,0.1194203,83770.0,83769.0,0.1194198]
[1743229233736,0.1394203,83770.0,83769.0,0.1212598]
[1743229234041,0.1394203,83770.0,83769.0,0.1194198]
[1743229234341,0.1194298,83763.0,83762.0,0.3608]
[1743229234544,0.2294298,83763.0,83762.0,0.4821112]
[1743229234734,0.1194298,83763.0,83762.0,0.4821112]
[1743229234935,0.4094298,83763.0,83762.0,0.4821112]
[1743229235144,0.3394298,83763.0,83762.0,0.4821112]
[1743229235336,0.4146298,83763.0,83762.0,0.4821112]
[1743229235537,0.4246298,83763.0,83762.0,0.36268]
[1743229235848,0.4546298,83763.0,83762.0,0.36268]
[1743229236742,0.4576298,83763.0,83762.0,0.36268]
[1743229237348,0.4576298,83763.0,83762.0,0.4821112]
[1743229237851,0.4576298,83763.0,83762.0,0.7321112]
[1743229238036,0.4606298,83763.0,83762.0,0.7321112]
[1743229238236,0.4606298,83763.0,83762.0,0.4821112]
[1743229238442,0.4626298,83763.0,83762.0,0.4821112]
[1743229238851,0.0732,83763.0,83762.0,0.4821112]
[1743229239049,0.0732,83763.0,83762.0,0.7321112]
[1743229239234,0.0702,83763.0,83762.0,0.7321112]
[1743229239435,0.0732,83763.0,83762.0,0.7321112]
[1743229239744,0.1926298,83763.0,83762.0,0.7321112]
[1743229240252,0.1896298,83763.0,83762.0,0.7321112]
[1743229240948,0.1886298,83763.0,83762.0,0.7321112]
[1743229241538,0.1866298,83763.0,83762.0,0.7321112]
[1743229241738,0.1886298,83763.0,83762.0,0.7321112]
[1743229242352,0.1876298,83763.0,83762.0,0.7321112]
[1743229243042,0.1856298,83763.0,83762.0,0.7321112]
[1743229243242,0.1866298,83763.0,83762.0,0.7321112]
[1743229243743,0.1866298,83763.0,83762.0,0.7627112]
[1743229244050,0.1876298,83763.0,83762.0,0.7627112]
[1743229244246,0.1876298,83763.0,83762.0,0.8802712]
[1743229244653,0.0682,83763.0,83762.0,0.8802712]
[1743229244947,0.0702,83763.0,83762.0,0.8802712]
[1743229246651,0.0692,83763.0,83762.0,0.8802712]
[1743229247349,0.0662,83763.0,83762.0,0.8952711]
[1743229247645,0.0672,83763.0,83762.0,0.8952711]
[1743229248544,0.0662,83763.0,83762.0,0.8952711]
[1743229248742,0.0672,83763.0,83762.0,0.8952711]
[1743229249142,0.0662,83763.0,83762.0,0.8952711]
[1743229249344,0.0672,83763.0,83762.0,0.8952711]
[1743229249549,0.1866298,83763.0,83762.0,0.8952711]
[1743229249750,0.1856298,83763.0,83762.0,0.8952711]
[1743229249953,0.1856298,83763.0,83762.0,0.8802712]
[1743229250747,0.1866298,83763.0,83762.0,0.8802712]
[1743229250950,0.1866298,83763.0,83762.0,0.89530241]
[1743229251553,0.1866298,83763.0,83762.0,0.89538241]
[1743229251752,0.1876298,83763.0,83762.0,0.89538241]
[1743229252144,0.1876298,83763.0,83762.0,0.53458241]
[1743229252345,0.1876298,83763.0,83762.0,0.89538241]
[1743229252544,0.1866298,83763.0,83762.0,0.89538241]
[1743229252751,0.1886298,83763.0,83762.0,0.89538241]
[1743229253444,0.1886298,83763.0,83762.0,0.53458241]
[1743229253653,0.1886298,83763.0,83762.0,0.89538241]
[1743229254044,0.0692,83763.0,83762.0,0.89538241]
[1743229254244,0.0672,83763.0,83762.0,0.89530241]
[1743229254446,0.0692,83763.0,83762.0,0.89530241]
[1743229254851,0.0692,83763.0,83762.0,0.77774241]
[1743229255047,0.0692,83763.0,83762.0,0.91059106]
[1743229255248,0.0672,83763.0,83762.0,0.91059106]
[1743229255552,0.0682,83763.0,83762.0,0.91059106]
[1743229255747,0.0288762,83763.0,83762.0,0.91059106]
[1743229255941,0.0288762,83763.0,83762.0,0.89538241]
[1743229256343,0.0288762,83763.0,83762.0,0.8803512]
[1743229257651,0.0298762,83763.0,83762.0,0.8801912]
[1743229258159,0.0298762,83763.0,83762.0,1.09438592]
[1743229258947,0.0605762,83763.0,83762.0,1.09438592]
[1743229259648,0.0605762,83763.0,83762.0,1.09442592]
[1743229260049,0.180006,83763.0,83762.0,1.09442592]
[1743229260754,0.410006,83763.0,83762.0,1.09442592]
[1743229260950,0.180006,83763.0,83762.0,1.09442592]
[1743229261349,0.280006,83763.0,83762.0,1.09442592]
[1743229261547,0.290006,83763.0,83762.0,1.09442592]
[1743229261758,0.180006,83763.0,83762.0,1.09442592]
[1743229262860,0.0605762,83763.0,83762.0,0.8802312]
[1743229263359,0.0605762,83763.0,83762.0,0.9109312]
[1743229264158,0.0595762,83763.0,83762.0,0.9109312]
[1743229264457,0.0595762,83763.0,83762.0,0.95570817]
[1743229264659,0.0585762,83763.0,83762.0,0.95570817]
[1743229264881,0.0595762,83763.0,83762.0,0.95570817]
[1743229265363,0.001,83763.0,83762.0,0.95570817]
[1743229265661,0.001,83763.0,83762.0,1.00361419]
[1743229265849,0.001,83763.0,83762.0,0.95570817]
[1743229266045,0.0322,83765.0,83764.0,0.1194283]
[1743229266245,0.0622,83765.0,83764.0,0.41241593]
[1743229266449,0.14430335,83765.0,83764.0,0.47267402]
[1743229267457,0.23530335,83765.0,83764.0,0.34095402]
[1743229267661,0.14530335,83765.0,83764.0,0.34095402]
[1743229268158,0.14630335,83765.0,83764.0,0.31568163]
[1743229269363,0.42630335,83765.0,83764.0,0.25542354]
[1743229269566,0.02687645,83765.0,83764.0,0.25542354]
[1743229272568,0.05847645,83765.0,83764.0,0.13714354]
[1743229272765,0.05847645,83765.0,83764.0,0.25542354]
[1743229273665,0.17790335,83765.0,83764.0,0.34745604]
[1743229273862,0.27790335,83765.0,83764.0,0.29950618]
[1743229274166,0.16847645,83765.0,83764.0,0.25542354]
[1743229274366,0.05847645,83765.0,83764.0,0.25542354]
[1743229275370,0.05847645,83765.0,83764.0,0.28769263]
[1743229275573,0.30847645,83765.0,83764.0,0.28769263]
[1743229275768,0.05847645,83765.0,83764.0,0.28769263]
[1743229275968,0.42790335,83765.0,83764.0,0.28769263]
[1743229276273,0.41790335,83765.0,83764.0,0.04998433]
[1743229276461,0.46790335,83765.0,83764.0,0.01738433]
[1743229276666,0.38790335,83765.0,83764.0,0.13681263]
[1743229276865,0.38790335,83765.0,83764.0,0.01738433]
[1743229277076,0.38790335,83765.0,83764.0,0.00192]
[1743229279775,0.38790335,83765.0,83764.0,0.1213483]
[1743229280270,0.38790335,83765.0,83764.0,0.1519483]
[1743229280670,0.38790335,83765.0,83764.0,0.1843483]
[1743229282371,0.23687645,83765.0,83764.0,0.1843483]
[1743229282571,0.35630335,83765.0,83764.0,0.1843483]
[1743229284474,0.14630335,83765.0,83764.0,0.1843483]
[1743229288079,0.14630335,83765.0,83764.0,0.4143483]
[1743229289370,0.002,83765.0,83764.0,0.4143483]
[1743229290284,0.002,83765.0,83764.0,0.46225002]
[1743229290482,0.002,83765.0,83764.0,0.4143483]
[1743229293374,0.002,83765.0,83764.0,0.4469483]
[1743229295076,0.002,83765.0,83764.0,0.5653083]
[1743229300381,0.002,83765.0,83764.0,0.85141621]
[1743229303592,0.002,83765.0,83764.0,0.5653083]
[1743229304284,0.002,83765.0,83764.0,0.58061962]
[1743229304599,0.1194216,83769.0,83768.0,0.1194212]
[1743229304782,0.1810216,83769.0,83768.0,0.13661252]
[1743229304978,0.3810216,83769.0,83768.0,0.13661252]
[1743229305285,0.2816,83769.0,83768.0,0.1213012]
[1743229305483,0.0616,83769.0,83768.0,0.1213012]
[1743229305683,0.4530212,83769.0,83768.0,0.1213012]
[1743229305882,0.2930212,83769.0,83768.0,0.1213012]
[1743229306086,0.1830212,83769.0,83768.0,0.1213012]
[1743229306281,0.2830212,83769.0,83768.0,0.1213012]
[1743229306778,0.4230212,83769.0,83768.0,0.1213012]
[1743229306975,0.2930212,83769.0,83768.0,0.00188]
[1743229307195,0.2930212,83769.0,83760.0,0.4689168]
[1743229307196,0.1194312,83762.0,83761.0,0.35718979]
[1743229307383,0.1194326,83761.0,83760.0,0.4092]
[1743229307582,0.3910326,83761.0,83760.0,0.41108]
[1743229307782,0.1810326,83761.0,83760.0,0.41108]
[1743229308001,0.4110326,83761.0,83760.0,0.00188]
[1743229308186,0.1810326,83761.0,83760.0,0.00188]
[1743229308389,0.4510326,83761.0,83760.0,0.121314]
[1743229308593,0.1810326,83761.0,83760.0,0.121314]
[1743229309492,0.3910326,83761.0,83760.0,0.121314]
[1743229309692,0.2820326,83761.0,83760.0,0.121314]
[1743229310182,0.4620326,83761.0,83760.0,0.121314]
[1743229310491,0.4220326,83761.0,83760.0,0.121314]
[1743229310689,0.4320326,83761.0,83760.0,0.00188]
[1743229310896,0.2920326,83761.0,83760.0,0.121314]
[1743229311097,0.4120326,83761.0,83760.0,0.121314]